fUST/lending_fUST_20240912
["ID","MTS","AMOUNT","RATE_DAILY","PERIOD"]
[337846392,1726150257632,-1391.31,0.0001726,2]
[337846393,1726150257641,-151.0,0.0001726,2]
[337846394,1726150257651,-154.542859,0.0001726,2]
[337846395,1726150257660,-561.99,0.0001726,2]
[337846396,1726150257670,-500.0,0.0001726,2]
[337846397,1726150257679,-5780.67,0.0001726,2]
[337846398,1726150257688,-942.13,0.0001726,2]
[337846399,1726150257698,-540.316874,0.0001726,2]
[337846400,1726150257707,-1854.03,0.0001726,2]
[337846401,1726150257716,-156.457408,0.0001726,2]
[337846402,1726150257725,-540.316874,0.0001726,2]
[337846403,1726150257735,-500.0,0.0001726,2]
[337846404,1726150257744,-532.65,0.0001726,2]
[337846405,1726150257756,-4524.76913612,0.0001726,2]
[337846406,1726150258412,-500.0,0.00016438,2]
[337846407,1726150258423,-153.0,0.000167,2]
[337846408,1726150258433,-500.0,0.00016712,2]
[337846409,1726150258444,-500.0,0.00016986,2]
[337846410,1726150258453,-8870.89086388,0.0001726,2]
[337846411,1726150258463,-540.316874,0.0001726,2]
[337846412,1726150258473,-540.316874,0.0001726,2]
[337846413,1726150258482,-513.81,0.0001726,2]
[337846414,1726150258491,-882.5,0.0001726,2]
[337846415,1726150258500,-500.0,0.0001726,2]
[337846416,1726150258510,-987.02,0.0001726,2]
[337846417,1726150258519,-643.01,0.0001726,2]
[337846418,1726150258529,-500.0,0.0001726,2]
[337846419,1726150258538,-151.0,0.00017534,2]
[337846420,1726150258548,-151.0,0.00017534,2]
[337846421,1726150258557,-500.0,0.00017534,2]
[337846422,1726150258567,-500.0,0.00017534,2]
[337846423,1726150258576,-362.10017985,0.00017534,2]
[337846424,1726150258586,-328.4443309,0.00017534,2]
[337846425,1726150258595,-500.0,0.00017534,2]
[337846426,1726150258606,-500.0,0.00017534,2]
[337846427,1726150258616,-742.36,0.00017534,2]
[337846428,1726150258626,-500.0,0.00017534,2]
[337846429,1726150258635,-774.95,0.00017534,2]
[337846430,1726150258645,-500.0,0.00017534,2]
[337846431,1726150258655,-500.0,0.00017534,2]
[337846432,1726150258665,-500.0,0.00017534,2]
[337846433,1726150258675,-500.0,0.00017534,2]
[337846434,1726150258685,-500.0,0.00017534,2]
[337846435,1726150258696,-500.0,0.00017534,2]
[337846436,1726150258706,-500.0,0.00017534,2]
[337846437,1726150258715,-469.61,0.00017534,2]
[337846438,1726150258726,-500.0,0.00017534,2]
[337846439,1726150258735,-500.0,0.00017534,2]
[337846440,1726150258746,-500.0,0.00017534,2]
[337846441,1726150258758,-262.84408514,0.00017534,2]
[337846442,1726150258769,-500.0,0.00017534,2]
[337846443,1726150258779,-654.69,0.00017534,2]
[337846444,1726150258788,-3815.174827,0.00017534,2]
[337846445,1726150258800,-3815.174827,0.00017534,2]
[337846446,1726150258810,-500.0,0.00017534,2]
[337846447,1726150258821,-500.0,0.00017534,2]
[337846448,1726150258831,-500.0,0.00017534,2]
[337846449,1726150258842,-780.7,0.00017534,2]
[337846450,1726150258851,-627.929473,0.00017534,2]
[337846451,1726150258862,-500.0,0.00017534,2]
[337846452,1726150258872,-500.0,0.00017534,2]
[337846453,1726150258882,-151.0,0.00017534,2]
[337846454,1726150258891,-500.0,0.00017534,2]
[337846455,1726150258901,-180.932478,0.00017534,2]
[337846456,1726150258910,-180.932478,0.00017534,2]
[337846457,1726150258920,-823.0,0.00017534,2]
[337846458,1726150258929,-500.0,0.00017534,2]
[337846459,1726150258939,-521.87,0.00017534,2]
[337846460,1726150258948,-151.0,0.00017534,2]
[337846461,1726150258957,-350.52,0.00017534,2]
[337846462,1726150258967,-500.0,0.00017534,2]
[337846463,1726150258976,-159.071171,0.00017534,2]
[337846464,1726150258986,-500.0,0.00017534,2]
[337846465,1726150258995,-159.071171,0.00017534,2]
[337846466,1726150259006,-546.68,0.00017534,2]
[337846467,1726150259015,-500.0,0.00017534,2]
[337846468,1726150259025,-826.0,0.00017534,2]
[337846469,1726150259034,-654.43,0.00017534,2]
[337846470,1726150259046,-500.0,0.00017534,2]
[337846471,1726150259055,-545.89,0.00017534,2]
[337846472,1726150259065,-500.0,0.00017534,2]
[337846473,1726150259075,-500.0,0.00017534,2]
[337846474,1726150259085,-195.032814,0.00017534,2]
[337846475,1726150259095,-195.032814,0.00017534,2]
[337846476,1726150259105,-511.44,0.00017534,2]
[337846477,1726150259115,-500.0,0.00017534,2]
[337846478,1726150259125,-159.419124,0.00017534,2]
[337846479,1726150259135,-500.0,0.00017534,2]
[337846480,1726150259144,-562.278671,0.00017534,2]
[337846481,1726150259155,-159.419124,0.00017534,2]
[337846482,1726150259165,-500.0,0.00017534,2]
[337846483,1726150259174,-1054.19,0.00017534,2]
[337846484,1726150259183,-500.0,0.00017534,2]
[337846485,1726150259194,-500.0,0.00017534,2]
[337846486,1726150259203,-500.0,0.00017534,2]
[337846487,1726150259213,-500.0,0.00017534,2]
[337846488,1726150259223,-500.0,0.00017534,2]
[337846489,1726150259233,-557.58,0.00017534,2]
[337846490,1726150259243,-500.0,0.00017534,2]
[337846491,1726150259253,-539.93,0.00017534,2]
[337846492,1726150259264,-974.73,0.00017534,2]
[337846493,1726150259274,-500.0,0.00017534,2]
[337846494,1726150259285,-734.06781,0.00017534,2]
[337846495,1726150259295,-734.06781,0.00017534,2]
[337846496,1726150259307,-500.0,0.00017534,2]
[337846497,1726150259317,-520.75,0.00017534,2]
[337846498,1726150259327,-500.0,0.00017534,2]
[337846499,1726150259338,-151.0,0.00017534,2]
[337846500,1726150259349,-151.0,0.00017534,2]
[337846501,1726150259358,-200.0,0.00017534,2]
[337846502,1726150259367,-650.28,0.00017534,2]
[337846503,1726150259376,-500.0,0.00017534,2]
[337846504,1726150259386,-500.0,0.00017534,2]
[337846505,1726150259395,-500.0,0.00017534,2]
[337846506,1726150259404,-702.21,0.00017534,2]
[337846507,1726150259414,-500.0,0.00017534,2]
[337846508,1726150259423,-500.0,0.00017534,2]
[337846509,1726150259432,-500.0,0.00017534,2]
[337846510,1726150259442,-552.29,0.00017534,2]
[337846511,1726150259452,-533.094339,0.00017534,2]
[337846512,1726150259461,-500.0,0.00017534,2]
[337846513,1726150259471,-500.0,0.00017534,2]
[337846514,1726150259481,-533.094339,0.00017534,2]
[337846515,1726150259490,-533.094339,0.00017534,2]
[337846516,1726150259499,-533.094339,0.00017534,2]
[337846517,1726150259509,-151.0,0.00017534,2]
[337846518,1726150259518,-619.24,0.00017534,2]
[337846519,1726150259528,-151.920782,0.00017534,2]
[337846520,1726150259538,-151.46,0.00017534,2]
[337846521,1726150259547,-479.058814,0.00017534,2]
[337846522,1726150259558,-500.0,0.00017534,2]
[337846523,1726150259567,-500.0,0.00017534,2]
[337846524,1726150259577,-479.058814,0.00017534,2]
[337846525,1726150259586,-500.0,0.00017534,2]
[337846526,1726150259596,-203.84,0.00017534,2]
[337846527,1726150259606,-600.36,0.00017534,2]
[337846528,1726150259615,-500.0,0.00017534,2]
[337846529,1726150259625,-500.0,0.00017534,2]
[337846530,1726150259635,-450.614078,0.00017534,2]
[337846531,1726150259646,-1541.87832,0.00017534,2]
[337846532,1726150259656,-1541.87832,0.00017534,2]
[337846533,1726150259667,-1541.87832,0.00017534,2]
[337846534,1726150259677,-729.62,0.00017534,2]
[337846535,1726150259686,-1541.87832,0.00017534,2]
[337846536,1726150259697,-450.614078,0.00017534,2]
[337846537,1726150259707,-769.97,0.00017534,2]
[337846538,1726150259717,-500.0,0.00017534,2]
[337846539,1726150259727,-500.0,0.00017534,2]
[337846540,1726150259737,-500.0,0.00017534,2]
[337846541,1726150259748,-154.508817,0.00017534,2]
[337846542,1726150259761,-500.0,0.00017534,2]
[337846543,1726150259771,-815.0,0.00017534,2]
[337846544,1726150259783,-1101.4,0.00017534,2]
[337846545,1726150259795,-500.0,0.00017534,2]
[337846546,1726150259806,-500.0,0.00017534,2]
[337846547,1726150259817,-151.0,0.00017534,2]
[337846548,1726150259827,-500.0,0.00017534,2]
[337846549,1726150259838,-10000.0,0.00017534,2]
[337846550,1726150259847,-500.0,0.00017534,2]
[337846551,1726150259857,-10000.0,0.00017534,2]
[337846552,1726150259866,-500.0,0.00017534,2]
[337846553,1726150259876,-947.829336,0.00017534,2]
[337846554,1726150259886,-947.829336,0.00017534,2]
[337846555,1726150259897,-697.062268,0.00017534,2]
[337846556,1726150259906,-8571.133616,0.00017534,2]
[337846557,1726150259916,-812.86,0.00017534,2]
[337846558,1726150259925,-697.062268,0.00017534,2]
[337846559,1726150259934,-947.829336,0.00017534,2]
[337846560,1726150259943,-947.829336,0.00017534,2]
[337846561,1726150259952,-288.53,0.00017534,2]
[337846562,1726150259962,-569.31,0.00017534,2]
[337846563,1726150259971,-958.15,0.00017534,2]
[337846564,1726150259982,-706.99,0.00017534,2]
[337846565,1726150259992,-648.72,0.00017534,2]
[337846566,1726150260001,-502.13,0.00017534,2]
[337846567,1726150260011,-500.0,0.00017534,2]
[337846568,1726150260021,-540.28,0.00017534,2]
[337846569,1726150260030,-500.0,0.00017534,2]
[337846570,1726150260040,-546.60029333,0.00017534,2]
[337846571,1726150260050,-500.0,0.00017534,2]
[337846572,1726150260059,-1235.46,0.00017534,2]
[337846573,1726150260068,-500.0,0.00017534,2]
[337846574,1726150260079,-500.0,0.00017534,2]
[337846575,1726150260088,-1076.19,0.00017534,2]
[337846576,1726150260099,-758.27,0.00017534,2]
[337846577,1726150260109,-500.0,0.00017534,2]
[337846578,1726150260118,-825.45,0.00017534,2]
[337846579,1726150260128,-500.0,0.00017534,2]
[337846580,1726150260140,-1058.68,0.00017534,2]
[337846581,1726150260150,-785.22,0.00017534,2]
[337846582,1726150260162,-500.0,0.00017534,2]
[337846583,1726150260173,-151.0,0.00017534,2]
[337846584,1726150260183,-324.23841,0.00017534,2]
[337846585,1726150260193,-324.23841,0.00017534,2]
[337846586,1726150260203,-980.2,0.00017534,2]
[337846587,1726150260213,-11877.91,0.00017534,2]
[337846588,1726150260222,-324.23841,0.00017534,2]
[337846589,1726150260233,-324.23841,0.00017534,2]
[337846590,1726150260243,-500.0,0.00017534,2]
[337846591,1726150260252,-770.112639,0.00017534,2]
[337846592,1726150260262,-500.0,0.00017534,2]
[337846593,1726150260271,-770.112639,0.00017534,2]
[337846594,1726150260281,-881.34,0.00017534,2]
[337846595,1726150260290,-500.0,0.00017534,2]
[337846596,1726150260300,-648.82209,0.00017534,2]
[337846597,1726150260311,-205.67216106,0.00017534,2]
[337846598,1726150260322,-648.82209,0.00017534,2]
[337846599,1726150260331,-510.04,0.00017534,2]
[337846600,1726150260343,-8606.77,0.00017534,2]
[337846601,1726150260354,-500.0,0.00017534,2]
[337846602,1726150260366,-654.97,0.00017534,2]
[337846603,1726150260375,-784.9,0.00017534,2]
[337846604,1726150260384,-500.0,0.00017534,2]
[337846605,1726150260394,-740.4,0.00017534,2]
[337846606,1726150260404,-847.21,0.00017534,2]
[337846607,1726150260413,-646.18,0.00017534,2]
[337846608,1726150260422,-634.81,0.00017534,2]
[337846609,1726150260431,-500.0,0.00017534,2]
[337846610,1726150260440,-500.0,0.00017534,2]
[337846611,1726150260450,-501.12662558,0.00017534,2]
[337846612,1726150260459,-500.0,0.00017534,2]
[337846613,1726150260467,-500.0,0.00017534,2]
[337846614,1726150260476,-2155.75,0.00017534,2]
[337846615,1726150260485,-737.21,0.00017534,2]
[337846616,1726150260494,-500.0,0.00017534,2]
[337846617,1726150260503,-700.928166,0.00017534,2]
[337846618,1726150260513,-700.928166,0.00017534,2]
[337846619,1726150260522,-831.55,0.00017534,2]
[337846620,1726150260531,-842.69,0.00017534,2]
[337846621,1726150260540,-820.31,0.00017534,2]
[337846622,1726150260548,-500.0,0.00017534,2]
[337846623,1726150260557,-151.0,0.00017534,2]
[337846624,1726150260567,-835.44,0.00017534,2]
[337846625,1726150260576,-241.6,0.00017534,2]
[337846626,1726150260585,-851.8,0.00017534,2]
[337846627,1726150260596,-500.0,0.00017534,2]
[337846628,1726150260605,-4349.15,0.00017534,2]
[337846629,1726150260615,-500.0,0.00017534,2]
[337846630,1726150260624,-7670.64,0.00017534,2]
[337846631,1726150260633,-500.0,0.00017534,2]
[337846632,1726150260643,-692.972043,0.00017534,2]
[337846633,1726150260653,-500.0,0.00017534,2]
[337846634,1726150260662,-500.0,0.00017534,2]
[337846635,1726150260672,-500.0,0.00017534,2]
[337846636,1726150260681,-692.972043,0.00017534,2]
[337846637,1726150260691,-12908.87,0.00017534,2]
[337846638,1726150260700,-894.03,0.00017534,2]
[337846639,1726150260709,-500.0,0.00017534,2]
[337846640,1726150260719,-954.84,0.00017534,2]
[337846641,1726150260728,-733.16,0.00017534,2]
[337846642,1726150260737,-1391.31,0.00017534,2]
[337846643,1726150260748,-561.99,0.00017534,2]
[337846644,1726150260759,-500.0,0.00017534,2]
[337846645,1726150260769,-5780.67,0.00017534,2]
[337846646,1726150260778,-942.13,0.00017534,2]
[337846647,1726150260787,-1854.03,0.00017534,2]
[337846648,1726150260798,-500.0,0.00017534,2]
[337846649,1726150260807,-540.316874,0.00017534,2]
[337846650,1726150260816,-532.65,0.00017534,2]
[337846651,1726150260827,-10691.78121534,0.00017534,2]
[337846658,1726150573851,441.88302,0.00015489,2]
[337846659,1726150606371,305.468567,0.00015446,2]
[337846660,1726150664294,500.0,0.00013699,2]
[337846661,1726150721771,184.577376,0.00015695,2]
[337846662,1726150722035,184.577376,0.00015739,2]
[337846663,1726150722240,184.577376,0.00015782,2]
[337846664,1726150722559,184.577376,0.00015825,2]
[337846665,1726150722797,184.577376,0.00015868,2]
[337846666,1726150723231,184.577376,0.00015911,2]
[337846667,1726150723499,184.577376,0.00015954,2]
[337846668,1726150723747,184.577376,0.00015997,2]
[337846674,1726150908420,160.20545,0.000153,2]
[337846675,1726150908615,160.20545,0.00015308,2]
[337846676,1726150908856,160.20545,0.00015315,2]
[337846677,1726150909100,160.20545,0.00015323,2]
[337846678,1726150909325,160.20545,0.00015331,2]
[337846679,1726150909586,160.20545,0.00015338,2]
[337846680,1726150910211,160.20545,0.00015346,2]
[337846681,1726150910338,160.20545,0.00015354,2]
[337846682,1726150910545,160.20545,0.00015361,2]
[337846683,1726150910868,160.20545,0.00015369,2]
[337846684,1726150911097,160.20545,0.00015376,2]
[337846685,1726151158160,-184.577376,0.0001604,2]
[337846686,1726151158188,-184.577376,0.00016083,2]
[337846687,1726151158211,-184.577376,0.00016126,2]
[337846688,1726151158234,-184.577376,0.00016169,2]
[337846689,1726151158257,-184.577376,0.00016212,2]
[337846690,1726151158280,-115.09674306,0.00016255,2]
[337846691,1726151159091,-69.48063294,0.00016255,2]
[337846692,1726151159115,-184.577376,0.00016298,2]
[337846693,1726151159136,-269.10297513,0.00016318,2]
[337846694,1726151159158,-1024.40763322,0.00016324,2]
[337846695,1726151228104,-566.72043751,0.00016324,2]
[337846696,1726151235086,-1062.13307888,0.00016324,2]
[337846697,1726151245094,-186.95563925,0.00016324,2]
[337846698,1726151245117,-158.59477671,0.00016338,2]
[337846699,1726151245139,-184.577376,0.00016341,2]
[337846700,1726151245160,-184.577376,0.00016384,2]
[337846701,1726151245180,-300.0,0.00016417,2]
[337846702,1726151245201,-300.0,0.00016417,2]
[337846703,1726151245224,-1712.70842975,0.00016418,2]
[337846704,1726151247125,-4337.00266406,0.00016418,2]
[337846705,1726151253256,500.0,0.00013699,2]
[337846707,1726151286597,10982.7408579,0.00015426,2]
[337846708,1726151317445,770.6776395,0.00015426,2]
[337846710,1726151373622,175.107666,0.00015539,2]
[337846711,1726151373861,175.107666,0.00015741,2]
[337846712,1726151374102,175.107666,0.00015944,2]
[337846729,1726151432078,-175.107666,0.00016146,2]
[337846731,1726151432090,-118.45913405,0.00016318,2]
[337846734,1726151432108,-2366.73055622,0.00016318,2]
[337846736,1726151432121,-175.107666,0.00016349,2]
[337846738,1726151432131,-5000.0,0.000164,2]
[337846740,1726151432141,-300.0,0.00016417,2]
[337846742,1726151432150,-300.0,0.00016417,2]
[337846744,1726151432160,-33858.25160878,0.00016418,2]
[337846746,1726151432173,-636.53625817,0.00016418,2]
[337846749,1726151432186,-298.36800265,0.00016418,2]
[337846751,1726151432196,-4252.37348332,0.00016418,2]
[337846753,1726151432206,-500.0,0.00016422,2]
[337846755,1726151432216,-500.0,0.00016422,2]
[337846757,1726151432226,-500.0,0.00016422,2]
[337846759,1726151432240,-500.0,0.00016422,2]
[337846761,1726151432250,-155.79211076,0.00016422,2]
[337846763,1726151432260,-500.0,0.00016422,2]
[337846765,1726151432270,-500.0,0.00016422,2]
[337846767,1726151432281,-500.0,0.00016422,2]
[337846768,1726151432292,-500.0,0.00016422,2]
[337846770,1726151432302,-500.0,0.00016422,2]
[337846772,1726151432314,-500.0,0.00016422,2]
[337846774,1726151432326,-500.0,0.00016422,2]
[337846776,1726151432336,-500.0,0.00016422,2]
[337846778,1726151432346,-500.0,0.00016422,2]
[337846780,1726151432356,-500.0,0.00016422,2]
[337846782,1726151432366,-500.0,0.00016422,2]
[337846784,1726151432376,-500.0,0.00016422,2]
[337846786,1726151432386,-311.58224587,0.00016422,2]
[337846789,1726151432400,-188.41775413,0.00016422,2]
[337846791,1726151432410,-500.0,0.00016422,2]
[337846793,1726151432421,-107.27754434,0.00016422,2]
[337846857,1726151438110,-11174.0,0.000164,2]
[337846859,1726151438122,-392.72245566,0.00016422,2]
[337846861,1726151438135,-500.0,0.00016422,2]
[337846863,1726151438144,-500.0,0.00016422,2]
[337846865,1726151438154,-500.0,0.00016422,2]
[337846867,1726151438163,-500.0,0.00016422,2]
[337846869,1726151438172,-500.0,0.00016422,2]
[337846871,1726151438182,-500.0,0.00016422,2]
[337846873,1726151438191,-500.0,0.00016422,2]
[337846875,1726151438200,-500.0,0.00016422,2]
[337846877,1726151438210,-500.0,0.00016422,2]
[337846879,1726151438219,-500.0,0.00016422,2]
[337846881,1726151438229,-500.0,0.00016422,2]
[337846883,1726151438243,-500.0,0.00016422,2]
[337846885,1726151438255,-348.20469476,0.00016422,2]
[337846887,1726151438272,-151.79530524,0.00016422,2]
[337846889,1726151438281,-500.0,0.00016422,2]
[337846891,1726151438291,-500.0,0.00016422,2]
[337846893,1726151438300,-500.0,0.00016422,2]
[337846895,1726151438310,-500.0,0.00016422,2]
[337846897,1726151438319,-500.0,0.00016422,2]
[337846900,1726151438329,-500.0,0.00016422,2]
[337846902,1726151438338,-500.0,0.00016422,2]
[337846904,1726151438348,-500.0,0.00016422,2]
[337846906,1726151438358,-500.0,0.00016422,2]
[337846908,1726151438368,-500.0,0.00016422,2]
[337846910,1726151438377,-500.0,0.00016422,2]
[337846912,1726151438387,-500.0,0.00016422,2]
[337846914,1726151438397,-500.0,0.00016422,2]
[337846916,1726151438407,-500.0,0.00016422,2]
[337846918,1726151438417,-500.0,0.00016422,2]
[337846920,1726151438429,-500.0,0.00016422,2]
[337846923,1726151438448,-500.0,0.00016422,2]
[337846926,1726151438460,-500.0,0.00016422,2]
[337846928,1726151438470,-500.0,0.00016422,2]
[337846930,1726151438479,-500.0,0.00016422,2]
[337846932,1726151438490,-500.0,0.00016422,2]
[337846933,1726151438500,-500.0,0.00016422,2]
[337846934,1726151438510,-500.0,0.00016422,2]
[337846935,1726151438520,-500.0,0.00016422,2]
[337846936,1726151438530,-500.0,0.00016422,2]
[337846937,1726151438540,-500.0,0.00016422,2]
[337846938,1726151438549,-500.0,0.00016422,2]
[337846939,1726151438559,-500.0,0.00016422,2]
[337846940,1726151438569,-500.0,0.00016422,2]
[337846941,1726151438578,-500.0,0.00016422,2]
[337846942,1726151438588,-500.0,0.00016422,2]
[337846943,1726151438598,-500.0,0.00016422,2]
[337846944,1726151438607,-500.0,0.00016422,2]
[337846945,1726151438617,-500.0,0.00016422,2]
[337846946,1726151438627,-500.0,0.00016422,2]
[337846947,1726151438637,-500.0,0.00016422,2]
[337846948,1726151438647,-500.0,0.00016422,2]
[337846949,1726151438657,-629.04592485,0.00016422,2]
[337846950,1726151438670,-230.41879677,0.00016422,2]
[337846951,1726151438680,-859.46472162,0.00016422,2]
[337846952,1726151438690,-859.46472162,0.00016422,2]
[337846953,1726151438699,-50.65175999,0.00016422,2]
[337847053,1726151440227,-808.81296163,0.00016422,2]
[337847054,1726151440240,-859.46472162,0.00016422,2]
[337847055,1726151440249,-859.46472162,0.00016422,2]
[337847056,1726151440445,-859.46472162,0.00016422,2]
[337847057,1726151440456,-859.46472162,0.00016422,2]
[337847058,1726151440466,-859.46472162,0.00016422,2]
[337847059,1726151440475,-859.46472162,0.00016422,2]
[337847060,1726151440485,-859.46472162,0.00016422,2]
[337847061,1726151440497,-859.46472162,0.00016422,2]
[337847062,1726151440507,-859.46472162,0.00016422,2]
[337847063,1726151440516,-859.46472162,0.00016422,2]
[337847064,1726151440525,-859.46472162,0.00016422,2]
[337847065,1726151440534,-859.46472162,0.00016422,2]
[337847066,1726151440544,-859.46472162,0.00016422,2]
[337847067,1726151440554,-859.46472162,0.00016422,2]
[337847068,1726151440564,-859.46472162,0.00016422,2]
[337847069,1726151440574,-859.46472162,0.00016422,2]
[337847070,1726151440583,-859.46472162,0.00016422,2]
[337847071,1726151440593,-859.46472162,0.00016422,2]
[337847072,1726151440603,-859.46472162,0.00016422,2]
[337847073,1726151440613,-158.59477671,0.00016426,2]
[337847074,1726151440623,-43491.444837,0.00016428,2]
[337847075,1726151440632,-5315.46685415,0.00016428,2]
[337847076,1726151440642,-159.42678564,0.00016436,2]
[337847077,1726151440652,-500.0,0.00016436,2]
[337847078,1726151440661,-276.11447647,0.00016436,2]
[337847079,1726151440671,-500.0,0.00016436,2]
[337847080,1726151440680,-193.75721117,0.00016436,2]
[337847081,1726151440690,-500.0,0.00016438,2]
[337847083,1726151440699,-500.0,0.00016438,2]
[337847084,1726151440709,-500.0,0.00016438,2]
[337847086,1726151440718,-500.0,0.00016438,2]
[337847088,1726151440727,-648.78193734,0.00016438,2]
[337847090,1726151440737,-500.0,0.00016438,2]
[337847092,1726151440747,-500.0,0.00016438,2]
[337847094,1726151440757,-500.0,0.00016438,2]
[337847096,1726151440767,-500.0,0.00016438,2]
[337847098,1726151440777,-500.0,0.00016438,2]
[337847100,1726151440787,-500.0,0.00016438,2]
[337847103,1726151440797,-500.0,0.00016438,2]
[337847105,1726151440806,-500.0,0.00016438,2]
[337847106,1726151440816,-500.0,0.00016438,2]
[337847109,1726151440827,-500.0,0.00016438,2]
[337847111,1726151440836,-500.0,0.00016438,2]
[337847113,1726151440847,-500.0,0.00016438,2]
[337847115,1726151440857,-500.0,0.00016438,2]
[337847117,1726151440866,-500.0,0.00016438,2]
[337847119,1726151440875,-500.0,0.00016438,2]
[337847121,1726151440885,-500.0,0.00016438,2]
[337847123,1726151440894,-500.0,0.00016438,2]
[337847125,1726151440904,-592.84678512,0.00016438,2]
[337847127,1726151440914,-605.9531014,0.00016438,2]
[337847129,1726151440923,-500.0,0.00016438,2]
[337847131,1726151440933,-500.0,0.00016438,2]
[337847133,1726151440942,-500.0,0.00016438,2]
[337847135,1726151440951,-500.0,0.00016438,2]
[337847137,1726151440960,-500.0,0.00016438,2]
[337847139,1726151440970,-500.0,0.00016438,2]
[337847141,1726151440979,-500.0,0.00016438,2]
[337847143,1726151440990,-500.0,0.00016438,2]
[337847145,1726151440999,-500.0,0.00016438,2]
[337847147,1726151441008,-525.31,0.00016438,2]
[337847149,1726151441018,-500.0,0.00016438,2]
[337847151,1726151441027,-500.0,0.00016438,2]
[337847153,1726151441036,-500.0,0.00016438,2]
[337847155,1726151441046,-500.0,0.00016438,2]
[337847157,1726151441056,-500.0,0.00016438,2]
[337847159,1726151441065,-500.0,0.00016438,2]
[337847161,1726151441075,-500.0,0.00016438,2]
[337847163,1726151441084,-548.54,0.00016438,2]
[337847165,1726151441093,-200.0,0.00016438,2]
[337847167,1726151441103,-500.0,0.00016438,2]
[337847169,1726151441113,-541.84,0.00016438,2]
[337847171,1726151441126,-500.0,0.00016438,2]
[337847173,1726151441135,-624.23,0.00016438,2]
[337847175,1726151441145,-500.0,0.00016438,2]
[337847177,1726151441155,-500.0,0.00016438,2]
[337847179,1726151441164,-500.0,0.00016438,2]
[337847181,1726151441174,-500.0,0.00016438,2]
[337847183,1726151441185,-635.24487891,0.00016438,2]
[337847185,1726151441194,-500.0,0.00016438,2]
[337847187,1726151441205,-500.0,0.00016438,2]
[337847189,1726151441216,-500.0,0.00016438,2]
[337847191,1726151441225,-500.0,0.00016438,2]
[337847193,1726151441235,-500.0,0.00016438,2]
[337847195,1726151441247,-705.8,0.00016438,2]
[337847197,1726151441265,-504.10185442,0.00016438,2]
[337847199,1726151441274,-500.0,0.00016438,2]
[337847202,1726151441284,-500.0,0.00016438,2]
[337847204,1726151441293,-500.0,0.00016438,2]
[337847206,1726151441303,-500.0,0.00016438,2]
[337847208,1726151441313,-683.11,0.00016438,2]
[337847210,1726151441322,-500.0,0.00016438,2]
[337847212,1726151441332,-500.0,0.00016438,2]
[337847214,1726151441342,-500.0,0.00016438,2]
[337847216,1726151441352,-500.0,0.00016438,2]
[337847218,1726151441362,-500.0,0.00016438,2]
[337847220,1726151441371,-521.75749717,0.00016438,2]
[337847222,1726151441381,-224.62343765,0.00016438,2]
[337847224,1726151441390,-500.0,0.00016438,2]
[337847226,1726151441400,-500.0,0.00016438,2]
[337847228,1726151441410,-578.71,0.00016438,2]